fUST/lending_fUST_20250111
["ID","MTS","AMOUNT","RATE_DAILY","PERIOD"]
[348490107,1736575838850,-500.0,0.00021917,3]
[348490108,1736575838859,-500.0,0.00021917,3]
[348490109,1736575838869,-350.55732511,0.00021917,3]
[348490110,1736575838879,-500.0,0.00021917,3]
[348490111,1736575838888,-117.94254869,0.00021917,3]
[348490139,1736575840662,-382.05745131,0.00021917,3]
[348490141,1736575840675,-500.0,0.00021917,3]
[348490143,1736575840686,-1287.58286181,0.00021917,3]
[348490145,1736575840697,-2129.68713819,0.00021917,3]
[348490147,1736575840706,-500.0,0.00021917,3]
[348490149,1736575840716,-500.0,0.00021917,3]
[348490151,1736575840725,-301.43029103,0.00021917,3]
[348490444,1736575843690,-198.56970897,0.00021917,3]
[348490446,1736575843700,-500.0,0.00021917,3]
[348490448,1736575843709,-500.0,0.00021917,3]
[348490450,1736575843721,-500.0,0.00021917,3]
[348490452,1736575843730,-538.78,0.00021917,3]
[348490454,1736575843740,-500.0,0.00021917,3]
[348490456,1736575843751,-536.78,0.00021917,3]
[348490458,1736575843761,-659.76,0.00021917,3]
[348490459,1736575843771,-594.289199,0.00021917,2]
[348490461,1736575843781,-594.289199,0.00021917,2]
[348490463,1736575843790,-500.0,0.00021917,3]
[348490465,1736575843799,-381.66310493,0.00021917,2]
[348490467,1736575843810,-212.62609407,0.00021917,2]
[348490469,1736575843820,-594.289199,0.00021917,2]
[348490470,1736575843829,-209.08470693,0.00021917,3]
[348490507,1736575846825,-290.91529307,0.00021917,3]
[348490508,1736575846836,-506.44265463,0.00021917,3]
[348490509,1736575846845,-500.0,0.00021917,3]
[348490510,1736575846855,-500.0,0.00021917,3]
[348490511,1736575846864,-364.9320523,0.00021917,3]
[348490519,1736576951413,502.0,0.00015052,2]
[348490564,1736577032793,-185.67301093,0.000189,2]
[348490565,1736577032803,-160.3250187,0.00020857,2]
[348490566,1736577032813,-103.90177658,0.00020857,2]
[348490567,1736577032941,-65.53116165,0.00020857,2]
[348490568,1736577032950,-413.714,0.0002108,2]
[348490569,1736577032960,-933.28754589,0.00021724,6]
[348490571,1736577032969,-300.0,0.00021768,2]
[348490573,1736577032978,-2711.0,0.00021768,2]
[348490575,1736577032987,-2476.98038799,0.00021769,2]
[348490897,1736577038744,-1040.19,0.00021769,2]
[348490898,1736577038756,-7322.03777132,0.00021769,2]
[348490899,1736577038766,-2000.0,0.000218,6]
[348490900,1736577038775,-1000.0,0.000218,7]
[348490901,1736577038785,-551.18760245,0.000219,2]
[348490902,1736577038794,-152.97,0.00021908,2]
[348490903,1736577038803,-236.06463845,0.00021916,2]
[348490904,1736577038813,-500.0,0.00021916,2]
[348490905,1736577038822,-325.49103076,0.00021916,2]
[348490906,1736577038832,-500.0,0.00021916,2]
[348490907,1736577038841,-11945.52376472,0.00021917,5]
[348490908,1736577038850,-1220.1486084,0.00021917,5]
[348490909,1736577038860,-500.0,0.00021917,3]
[348490910,1736577038870,-500.0,0.00021917,3]
[348490911,1736577038879,-468.96095584,0.00021917,3]
[348490939,1736577043701,-31.03904416,0.00021917,3]
[348490940,1736577043711,-460.85005,0.00021917,2]
[348490941,1736577043720,-460.85005,0.00021917,2]
[348490942,1736577043730,-500.0,0.00021917,3]
[348490943,1736577043740,-359.39417865,0.00021917,3]
[348490944,1736577043749,-500.0,0.00021917,3]
[348490945,1736577043759,-500.0,0.00021917,3]
[348490946,1736577043770,-534.85807091,0.00021917,3]
[348490947,1736577043779,-642.59406699,0.00021917,3]
[348490948,1736577043789,-500.0,0.00021917,3]
[348490949,1736577043798,-256.15378473,0.00021917,3]
[348490950,1736577043808,-225.515342,0.00021917,2]
[348490951,1736577043818,-531.95155675,0.00021917,3]
[348490952,1736577043828,-500.0,0.00021917,3]
[348490953,1736577043838,-225.515342,0.00021917,2]
[348490954,1736577043848,-222.85159741,0.00021917,3]
[348490955,1736577043858,-500.0,0.00021917,3]
[348490956,1736577043868,-500.0,0.00021917,3]
[348490957,1736577043877,-500.0,0.00021917,3]
[348490958,1736577043888,-500.0,0.00021917,3]
[348490959,1736577043898,-500.0,0.00021917,3]
[348490960,1736577043908,-511.73294023,0.00021917,3]
[348490961,1736577043917,-475.43136,0.00021917,2]
[348490962,1736577043927,-426.27619656,0.00021917,3]
[348490972,1736578100894,-100000.0,0.0002258,60]
[348491003,1736578232103,-150.0,0.0002048,2]
[348491005,1736578232112,-396.723,0.0002082,2]
[348491007,1736578232121,-181.12164041,0.00021817,2]
[348491009,1736578232131,-532.81468232,0.000219,2]
[348491011,1736578232140,-300.0,0.00021915,2]
[348491013,1736578232150,-500.0,0.00021916,2]
[348491015,1736578232159,-318.84066127,0.00021916,2]
[348491017,1736578232172,-181.15933873,0.00021916,2]
[348491019,1736578232181,-465.03351427,0.00021916,2]
[348491022,1736578232193,-162.42512829,0.00021916,2]
[348491024,1736578232203,-500.0,0.00021916,2]
[348491026,1736578232212,-500.0,0.00021916,2]
[348491028,1736578232222,-500.0,0.00021916,2]
[348491030,1736578232231,-500.0,0.00021916,2]
[348491032,1736578232241,-169.92523109,0.00021916,2]
[348491034,1736578232251,-500.0,0.00021916,2]
[348491036,1736578232261,-500.0,0.00021916,2]
[348491038,1736578232271,-500.0,0.00021916,2]
[348491040,1736578232281,-500.0,0.00021916,2]
[348491042,1736578232291,-500.0,0.00021916,2]
[348491044,1736578232302,-500.0,0.00021916,2]
[348491046,1736578232313,-378.33840462,0.00021916,2]
[348491048,1736578232323,-223.4274135,0.00021916,2]
[348491050,1736578232332,-500.0,0.00021916,2]
[348491052,1736578232342,-500.0,0.00021916,2]
[348491054,1736578232352,-437.14183054,0.00021916,2]
[348491056,1736578232362,-500.0,0.00021916,2]
[348491058,1736578232371,-500.0,0.00021916,2]
[348491060,1736578232381,-500.0,0.00021916,2]
[348491062,1736578232390,-196.42135949,0.00021916,2]
[348491065,1736578232403,-103.57864051,0.00021916,2]
[348491067,1736578232412,-500.0,0.00021916,2]
[348491069,1736578232422,-644.52752101,0.00021916,2]
[348491071,1736578232431,-13670.72808472,0.00021917,5]
[348491073,1736578232443,-223.55204644,0.00021917,5]
[348491075,1736578232452,-1346.19141556,0.00021917,5]
[348491086,1736578232541,-21.582756,0.00021917,5]
[348491088,1736578232551,-151.0,0.00021917,2]
[348491090,1736578232560,-151.0,0.00021917,2]
[348491092,1736578232570,-151.0,0.00021917,2]
[348491094,1736578232585,-151.0,0.00021917,2]
[348491096,1736578232595,-151.0,0.00021917,2]
[348491098,1736578232604,-151.0,0.00021917,2]
[348491100,1736578232614,-151.0,0.00021917,2]
[348491102,1736578232624,-151.0,0.00021917,2]
[348491104,1736578232634,-414.765045,0.00021917,2]
[348491106,1736578232643,-414.765045,0.00021917,2]
[348491108,1736578232653,-414.765045,0.00021917,2]
[348491111,1736578232663,-414.765045,0.00021917,2]
[348491113,1736578232673,-414.765045,0.00021917,2]
[348491115,1736578232683,-414.765045,0.00021917,2]
[348491117,1736578232692,-414.765045,0.00021917,2]
[348491119,1736578232701,-414.765045,0.00021917,2]
[348491121,1736578232711,-414.765045,0.00021917,2]
[348491123,1736578232721,-414.765045,0.00021917,2]
[348491125,1736578232731,-414.765045,0.00021917,2]
[348491127,1736578232741,-414.765045,0.00021917,2]
[348491129,1736578232758,-213.84533532,0.00021917,2]
[348491195,1736578237869,-200.91970968,0.00021917,2]
[348491196,1736578237879,-414.765045,0.00021917,2]
[348491197,1736578237888,-414.765045,0.00021917,2]
[348491198,1736578237898,-414.765045,0.00021917,2]
[348491199,1736578237908,-17.68280631,0.00021917,2]
[348491202,1736578237974,-433.97698569,0.00021917,2]
[348491204,1736578237984,-176.04762258,0.00021917,2]
[348491206,1736578237998,-275.61216942,0.00021917,2]
[348491208,1736578238007,-128.01655649,0.00021917,3]
[348491286,1736578240134,-371.98344351,0.00021917,3]
[348491288,1736578240144,-154.72569775,0.00021917,3]
[348491290,1736578240154,-577.22317806,0.00021917,3]
[348491292,1736578240164,-500.0,0.00021917,3]
[348491295,1736578240174,-500.0,0.00021917,3]
[348491297,1736578240184,-500.0,0.00021917,3]
[348491299,1736578240193,-500.0,0.00021917,3]
[348491301,1736578240203,-503.68010815,0.00021917,3]
[348491303,1736578240212,-500.0,0.00021917,3]
[348491305,1736578240222,-505.78244741,0.00021917,3]
[348491307,1736578240232,-151.0,0.00021917,2]
[348491309,1736578240242,-151.0,0.00021917,2]
[348491311,1736578240254,-537.05413559,0.00021917,3]
[348491313,1736578240264,-500.0,0.00021917,3]
[348491315,1736578240274,-503.89914711,0.00021917,3]
[348491317,1736578240284,-502.47932697,0.00021917,3]
[348491319,1736578240294,-502.57934032,0.00021917,3]
[348491320,1736578240303,-504.00614542,0.00021917,3]
[348491322,1736578240316,-500.0,0.00021917,3]
[348491324,1736578240326,-500.0,0.00021917,3]
[348491326,1736578240336,-500.0,0.00021917,3]
[348491328,1736578240345,-502.84985364,0.00021917,3]
[348491331,1736578240356,-505.08882259,0.00021917,3]
[348491333,1736578240365,-501.87932997,0.00021917,3]
[348491335,1736578240376,-423.8381632,0.00021917,3]
[348491337,1736578240386,-500.0,0.00021917,3]
[348491339,1736578240395,-500.0,0.00021917,3]
[348491341,1736578240405,-500.0,0.00021917,3]
[348491343,1736578240414,-500.0,0.00021917,3]
[348491345,1736578240423,-500.0,0.00021917,3]
[348491347,1736578240433,-500.0,0.00021917,3]
[348491349,1736578240442,-500.0,0.00021917,3]
[348491351,1736578240451,-500.0,0.00021917,3]
[348491353,1736578240460,-500.0,0.00021917,3]
[348491355,1736578240470,-500.0,0.00021917,3]
[348491357,1736578240479,-567.47648,0.00021917,2]
[348491359,1736578240488,-567.47648,0.00021917,2]
[348491361,1736578240498,-567.47648,0.00021917,2]
[348491363,1736578240508,-567.47648,0.00021917,2]
[348491365,1736578240518,-567.47648,0.00021917,2]
[348491367,1736578240527,-567.47648,0.00021917,2]
[348491369,1736578240537,-567.47648,0.00021917,2]
[348491371,1736578240547,-567.47648,0.00021917,2]
[348491373,1736578240556,-567.47648,0.00021917,2]
[348491375,1736578240566,-567.47648,0.00021917,2]
[348491377,1736578240576,-500.0,0.00021917,3]
[348491379,1736578240586,-567.47648,0.00021917,2]
[348491381,1736578240595,-567.47648,0.00021917,2]
[348491383,1736578240604,-500.0,0.00021917,3]
[348491385,1736578240614,-567.47648,0.00021917,2]
[348491387,1736578240623,-567.47648,0.00021917,2]
[348491389,1736578240632,-567.47648,0.00021917,2]
[348491391,1736578240641,-567.47648,0.00021917,2]
[348491393,1736578240650,-567.47648,0.00021917,2]
[348491395,1736578240660,-567.47648,0.00021917,2]
[348491397,1736578240669,-611.26107572,0.00021917,3]
[348491399,1736578240679,-264.20454,0.00021917,2]
[348491401,1736578240688,-264.20454,0.00021917,2]
[348491403,1736578240698,-264.20454,0.00021917,2]
[348491405,1736578240708,-264.20454,0.00021917,2]
[348491407,1736578240717,-264.20454,0.00021917,2]
[348491409,1736578240727,-264.20454,0.00021917,2]
[348491411,1736578240736,-264.20454,0.00021917,2]
[348491424,1736578240849,-264.20454,0.00021917,2]
[348491426,1736578240859,-264.20454,0.00021917,2]
[348491428,1736578240868,-264.20454,0.00021917,2]
[348491430,1736578240878,-264.20454,0.00021917,2]
[348491432,1736578240887,-264.20454,0.00021917,2]
[348491434,1736578240897,-264.20454,0.00021917,2]
[348491436,1736578240906,-264.20454,0.00021917,2]
[348491438,1736578240916,-264.20454,0.00021917,2]
[348491440,1736578240928,-264.20454,0.00021917,2]
[348491442,1736578240939,-264.20454,0.00021917,2]
[348491444,1736578240949,-264.20454,0.00021917,2]
[348491446,1736578240958,-500.0,0.00021917,3]
[348491449,1736578240968,-151.0,0.00021917,2]
[348491451,1736578240977,-168.812927,0.00021917,2]
[348491453,1736578240986,-500.0,0.00021917,3]
[348491455,1736578240995,-500.0,0.00021917,3]
[348491456,1736578241004,-514.42,0.00021917,3]
[348491458,1736578241015,-500.0,0.00021917,3]
[348491460,1736578241024,-503.33469461,0.00021917,3]
[348491463,1736578241033,-500.0,0.00021917,3]
[348491465,1736578241045,-500.0,0.00021917,3]
[348491467,1736578241054,-500.0,0.00021917,3]
[348491469,1736578241064,-500.0,0.00021917,3]
[348491471,1736578241073,-500.0,0.00021917,3]
[348491473,1736578241082,-500.0,0.00021917,3]
[348491475,1736578241091,-1100.17,0.00021917,3]
[348491477,1736578241101,-151.0,0.00021917,2]
[348491479,1736578241111,-151.0,0.00021917,2]
[348491481,1736578241120,-151.0,0.00021917,2]
[348491483,1736578241129,-238.817411,0.00021917,2]
[348491485,1736578241138,-500.0,0.00021917,3]
[348491487,1736578241147,-500.0,0.00021917,3]
[348491489,1736578241156,-500.0,0.00021917,3]
[348491491,1736578241166,-500.0,0.00021917,3]
[348491493,1736578241175,-228.04391185,0.00021917,3]
[348491495,1736578241185,-500.0,0.00021917,3]
[348491497,1736578241194,-500.0,0.00021917,3]
[348491499,1736578241204,-500.0,0.00021917,3]
[348491501,1736578241214,-500.0,0.00021917,3]
[348491503,1736578241224,-500.0,0.00021917,3]
[348491505,1736578241234,-500.0,0.00021917,3]
[348491507,1736578241243,-500.0,0.00021917,3]
[348491509,1736578241253,-249.18797465,0.00021917,3]
[348491511,1736578241263,-500.0,0.00021917,3]
[348491513,1736578241272,-500.0,0.00021917,3]
[348491515,1736578241281,-500.0,0.00021917,3]
[348491517,1736578241290,-500.0,0.00021917,3]
[348491519,1736578241300,-1000.0,0.00021917,2]
[348491521,1736578241309,-500.0,0.00021917,3]
[348491523,1736578241318,-500.0,0.00021917,3]
[348491525,1736578241328,-500.0,0.00021917,3]
[348491527,1736578241337,-500.0,0.00021917,3]
[348491529,1736578241348,-500.0,0.00021917,3]
[348491531,1736578241357,-500.87449441,0.00021917,3]
[348491533,1736578241367,-500.0,0.00021917,3]
[348491535,1736578241377,-500.0,0.00021917,3]
[348491537,1736578241386,-500.0,0.00021917,3]
[348491539,1736578241396,-500.0,0.00021917,3]
[348491541,1736578241405,-500.0,0.00021917,3]
[348491543,1736578241415,-500.0,0.00021917,3]
[348491545,1736578241424,-500.0,0.00021917,3]
[348491547,1736578241434,-500.0,0.00021917,3]
[348491549,1736578241443,-500.0,0.00021917,3]
[348491551,1736578241452,-500.0,0.00021917,3]
[348491553,1736578241462,-500.0,0.00021917,3]
[348491555,1736578241472,-500.0,0.00021917,3]
[348491557,1736578241481,-500.0,0.00021917,3]
[348491559,1736578241491,-500.0,0.00021917,3]
[348491561,1736578241500,-500.0,0.00021917,3]
[348491563,1736578241511,-500.0,0.00021917,3]
[348491565,1736578241520,-500.0,0.00021917,3]
[348491567,1736578241530,-500.0,0.00021917,3]
[348491569,1736578241539,-500.0,0.00021917,3]
[348491571,1736578241549,-500.42315959,0.00021917,3]
[348491573,1736578241558,-587.75646739,0.00021917,3]
[348491575,1736578241567,-500.0,0.00021917,3]
[348491577,1736578241577,-500.0,0.00021917,3]
[348491579,1736578241586,-2846.15,0.00021917,3]
[348491581,1736578241596,-500.0,0.00021917,3]
[348491583,1736578241605,-500.0,0.00021917,3]
[348491585,1736578241614,-500.0,0.00021917,3]
[348491587,1736578241624,-172.13869373,0.00021917,3]
[348491589,1736578241635,-500.0,0.00021917,3]
[348491591,1736578241645,-500.0,0.00021917,3]
[348491593,1736578241654,-363.450965,0.00021917,2]
[348491595,1736578241663,-363.450965,0.00021917,2]
[348491597,1736578241673,-363.450965,0.00021917,2]
[348491600,1736578241683,-363.450965,0.00021917,2]
[348491601,1736578241694,-363.450965,0.00021917,2]
[348491603,1736578241704,-363.450965,0.00021917,2]
[348491605,1736578241714,-363.450965,0.00021917,2]
[348491607,1736578241723,-363.450965,0.00021917,2]
[348491609,1736578241732,-363.450965,0.00021917,2]
[348491611,1736578241742,-363.450965,0.00021917,2]
[348491613,1736578241750,-363.450965,0.00021917,2]
[348491615,1736578241761,-363.450965,0.00021917,2]
[348491617,1736578241770,-363.450965,0.00021917,2]
[348491619,1736578241780,-500.0,0.00021917,3]
[348491621,1736578241790,-363.450965,0.00021917,2]
[348491623,1736578241799,-363.450965,0.00021917,2]
[348491625,1736578241809,-363.450965,0.00021917,2]
[348491627,1736578241819,-363.450965,0.00021917,2]
[348491629,1736578241828,-363.450965,0.00021917,2]
[348491631,1736578241838,-363.450965,0.00021917,2]
[348491633,1736578241847,-363.45097,0.00021917,2]
[348491635,1736578241857,-500.0,0.00021917,3]
[348491638,1736578241866,-3431.49,0.00021917,3]
[348491640,1736578241875,-708.425897,0.00021917,2]
[348491641,1736578241884,-500.0,0.00021917,3]
[348491643,1736578241893,-708.425897,0.00021917,2]
[348491645,1736578241903,-708.425897,0.00021917,2]
[348491647,1736578241912,-708.425897,0.00021917,2]
[348491649,1736578241921,-708.425897,0.00021917,2]
[348491652,1736578241931,-708.425897,0.00021917,2]
[348491654,1736578241939,-500.0,0.00021917,3]
[348491656,1736578241950,-708.425897,0.00021917,2]
[348491658,1736578241960,-708.425897,0.00021917,2]
[348491659,1736578241969,-708.425897,0.00021917,2]
[348491661,1736578241978,-708.425897,0.00021917,2]
[348491664,1736578241988,-708.425897,0.00021917,2]
[348491666,1736578241996,-501.27,0.00021917,3]
[348491667,1736578242006,-708.425897,0.00021917,2]
[348491670,1736578242015,-708.425897,0.00021917,2]
[348491671,1736578242025,-708.425897,0.00021917,2]
[348491673,1736578242034,-708.425897,0.00021917,2]
[348491675,1736578242043,-708.425897,0.00021917,2]
[348491677,1736578242052,-708.425897,0.00021917,2]
[348491679,1736578242061,-708.425897,0.00021917,2]
[348491681,1736578242071,-708.425897,0.00021917,2]
[348491683,1736578242080,-708.425901,0.00021917,2]
[348491685,1736578242090,-500.0,0.00021917,3]
[348491687,1736578242099,-500.0,0.00021917,3]
[348491689,1736578242108,-500.0,0.00021917,3]
[348491691,1736578242117,-500.0,0.00021917,3]
[348491693,1736578242128,-604.6,0.00021917,3]
[348491695,1736578242137,-544.54,0.00021917,3]
[348491697,1736578242146,-500.0,0.00021917,3]
[348491699,1736578242156,-500.0,0.00021917,3]
[348491701,1736578242165,-1233.18,0.00021917,3]
[348491703,1736578242174,-500.0,0.00021917,3]
[348491705,1736578242184,-41834.0,0.00021917,2]
[348491707,1736578242193,-632.27,0.00021917,3]
[348491709,1736578242203,-500.0,0.00021917,3]
[348491711,1736578242213,-500.0,0.00021917,3]
[348491713,1736578242222,-1874.63,0.00021917,3]
[348491715,1736578242232,-647.17,0.00021917,3]
[348491717,1736578242243,-609.86,0.00021917,3]
[348491720,1736578242253,-500.0,0.00021917,3]
[348491721,1736578242263,-151.0,0.00021917,2]
[348491723,1736578242272,-151.0,0.00021917,2]
[348491725,1736578242282,-151.0,0.00021917,2]
[348491727,1736578242291,-151.0,0.00021917,2]
[348491729,1736578242300,-151.0,0.00021917,2]
[348491731,1736578242309,-151.0,0.00021917,2]
[348491733,1736578242321,-3182.29,0.00021917,3]
[348491735,1736578242331,-151.0,0.00021917,2]
[348491737,1736578242341,-151.0,0.00021917,2]
[348491739,1736578242351,-151.0,0.00021917,2]
[348491741,1736578242361,-261.672544,0.00021917,2]
[348491743,1736578242370,-500.0,0.00021917,3]
[348491746,1736578242379,-500.0,0.00021917,2]
[348491748,1736578242389,-500.0,0.00021917,3]
[348491750,1736578242398,-500.0,0.00021917,3]
[348491752,1736578242408,-500.0,0.00021917,3]
[348491753,1736578242418,-500.0,0.00021917,3]
[348491754,1736578242427,-500.0,0.00021917,3]
[348491755,1736578242436,-500.0,0.00021917,3]
[348491756,1736578242445,-500.0,0.00021917,3]
[348491757,1736578242455,-500.0,0.00021917,3]
[348491758,1736578242465,-500.0,0.00021917,3]
[348491759,1736578242474,-500.0,0.00021917,3]
[348491760,1736578242484,-500.0,0.00021917,3]
[348491761,1736578242494,-500.0,0.00021917,3]
[348491762,1736578242504,-500.0,0.00021917,3]
[348491763,1736578242513,-151.0,0.00021917,2]
[348491764,1736578242523,-500.0,0.00021917,3]
[348491765,1736578242532,-500.0,0.00021917,3]
[348491766,1736578242541,-500.0,0.00021917,3]
[348491767,1736578242550,-500.0,0.00021917,3]
[348491768,1736578242560,-500.0,0.00021917,3]
[348491769,1736578242570,-500.0,0.00021917,3]
[348491771,1736578242579,-505.61422913,0.00021917,3]
[348491773,1736578242589,-500.0,0.00021917,3]
[348491775,1736578242598,-500.0,0.00021917,3]
[348491777,1736578242607,-507.87347469,0.00021917,3]
[348491779,1736578242616,-500.0,0.00021917,3]
[348491781,1736578242625,-500.0,0.00021917,3]
[348491783,1736578242635,-913.89,0.00021917,3]
[348491785,1736578242644,-500.0,0.00021917,3]
[348491787,1736578242654,-500.0,0.00021917,3]
[348491789,1736578242663,-514.85777206,0.00021917,3]
[348491791,1736578242673,-500.0,0.00021917,3]
[348491793,1736578242682,-500.0,0.00021917,3]
[348491795,1736578242692,-678.65,0.00021917,3]
[348491797,1736578242702,-508.61643633,0.00021917,3]
[348491799,1736578242712,-500.0,0.00021917,3]
[348491801,1736578242721,-500.0,0.00021917,3]
[348491803,1736578242731,-1213.36,0.00021917,3]
[348491805,1736578242740,-500.0,0.00021917,3]
[348491807,1736578242749,-500.0,0.00021917,3]
[348491809,1736578242759,-502.02,0.00021917,3]
[348491811,1736578242769,-360.27877733,0.00021917,3]
[348491813,1736578242778,-510.92052446,0.00021917,3]
[348491815,1736578242787,-500.0,0.00021917,3]
[348491817,1736578242797,-632.36,0.00021917,3]
[348491819,1736578242806,-500.0,0.00021917,3]
[348491821,1736578242815,-500.0,0.00021917,3]
[348491823,1736578242824,-500.0,0.00021917,3]
[348491825,1736578242833,-500.0,0.00021917,3]
[348491827,1736578242842,-500.0,0.00021917,3]
[348491829,1736578242851,-305.0334215,0.00021917,3]
[348491840,1736578242947,-376.78991755,0.00021917,3]
[348491843,1736578242959,-68.15666095,0.00021917,3]
[348491845,1736578242969,-509.65,0.00021917,3]
[348491847,1736578242978,-500.0,0.00021917,3]
[348491849,1736578242988,-500.0,0.00021917,3]
[348491851,1736578242997,-5665.69333905,0.00021917,3]
[348491864,1736578243116,-760.67355579,0.00021917,3]
[348491866,1736578243128,-4286.99058438,0.00021917,3]
[348492080,1736578246041,-482.99,0.00021917,3]
[348492132,1736579432419,-150.0,0.00019707,2]
[348492134,1736579432429,-150.0,0.00019817,2]
[348492136,1736579432438,-1140.0,0.00020495,2]
[348492138,1736579432447,-380.075,0.0002082,2]
[348492140,1736579432456,-13019.96329399,0.00021489,2]
[348492142,1736579432466,-436.76159027,0.00021708,2]
[348492144,1736579432475,-1000.0,0.000218,15]
[348492146,1736579432484,-215.78438232,0.000218,2]
[348492148,1736579432493,-176.71377593,0.00021817,2]
[348492150,1736579432502,-13019.96329399,0.00021845,2]
[348492152,1736579432511,-562.5,0.00021881,15]
[348492154,1736579432520,-515.05419289,0.000219,2]
[348492156,1736579432529,-151.0,0.00021904,2]
[348492158,1736579432539,-500.0,0.00021916,2]
[348492160,1736579432548,-500.0,0.00021916,2]
[348492162,1736579432558,-500.0,0.00021916,2]
[348492164,1736579432567,-500.0,0.00021916,2]
[348492166,1736579432576,-500.0,0.00021916,2]
[348492168,1736579432585,-500.0,0.00021916,2]
[348492170,1736579432595,-475.72302406,0.00021916,2]
[348492172,1736579432604,-557.92845051,0.00021916,2]
[348492174,1736579432613,-500.0,0.00021916,2]
[348492176,1736579432622,-500.0,0.00021916,2]
[348492178,1736579432631,-500.0,0.00021916,2]
[348492180,1736579432640,-500.0,0.00021916,2]
[348492182,1736579432649,-500.0,0.00021916,2]
[348492184,1736579432660,-500.0,0.00021916,2]
[348492185,1736579432670,-500.0,0.00021916,2]
[348492188,1736579432680,-500.0,0.00021916,2]
[348492190,1736579432691,-247.71045627,0.00021916,2]
[348492192,1736579432701,-500.0,0.00021916,2]
[348492194,1736579432711,-500.0,0.00021916,2]
[348492195,1736579432721,-500.0,0.00021916,2]
[348492197,1736579432731,-620.60388728,0.00021916,2]
[348492200,1736579432741,-179.59589091,0.00021916,2]
[348492201,1736579432751,-352.28858819,0.00021916,2]
[348492203,1736579432761,-500.0,0.00021916,2]
[348492205,1736579432770,-391.42539853,0.00021916,2]
[348492207,1736579432780,-499.0,0.00021916,2]
[348492209,1736579432789,-11787.44296735,0.00021917,5]
[348492211,1736579432798,-683.88708578,0.00021917,5]
[348492214,1736579432807,-506.71743847,0.00021917,3]
[348492216,1736579432817,-197.934162,0.00021917,2]
[348492218,1736579432826,-197.934162,0.00021917,2]
[348492220,1736579432836,-197.934162,0.00021917,2]
[348492222,1736579432846,-197.934162,0.00021917,2]
[348492224,1736579432855,-197.934162,0.00021917,2]
[348492226,1736579432864,-197.934162,0.00021917,2]
[348492228,1736579432873,-197.934162,0.00021917,2]
[348492230,1736579432882,-197.934162,0.00021917,2]
[348492232,1736579432892,-197.934162,0.00021917,2]
[348492234,1736579432903,-197.934162,0.00021917,2]
[348492236,1736579432913,-197.934162,0.00021917,2]
[348492237,1736579432922,-197.934162,0.00021917,2]
[348492239,1736579432931,-197.934162,0.00021917,2]
[348492241,1736579432940,-197.934162,0.00021917,2]
[348492244,1736579432949,-197.934162,0.00021917,2]
[348492246,1736579432958,-197.934162,0.00021917,2]
[348492248,1736579432967,-197.934162,0.00021917,2]
[348492249,1736579432976,-197.934162,0.00021917,2]
[348492252,1736579432986,-197.934162,0.00021917,2]
[348492254,1736579432995,-197.934161,0.00021917,2]
[348492256,1736579433004,-202.963808,0.00021917,2]
[348492258,1736579433014,-202.963808,0.00021917,2]
[348492260,1736579433023,-202.963808,0.00021917,2]
[348492262,1736579433033,-202.963808,0.00021917,2]
[348492264,1736579433042,-202.963808,0.00021917,2]
[348492266,1736579433052,-202.963808,0.00021917,2]